bitfinex/quotes_SOLUSD_20260213
["timestamp","ask_amount","ask_price","bid_price","bid_amount"]
[1770970371557,0.49003916,79.297,79.265,0.47216893]
[1770970371949,4.19755456,79.29,79.265,0.47216893]
[1770970372148,4.68759372,79.29,79.265,0.47216893]
[1770970373163,0.49003916,79.289,79.265,0.47216893]
[1770970374377,0.49003916,79.289,79.267,0.47216893]
[1770970375479,0.49003916,79.289,79.267,13.08764388]
[1770970375652,0.49003916,79.289,79.268,0.47216893]
[1770970377278,0.49003916,79.289,79.269,12.61527204]
[1770970379465,0.49003916,79.289,79.269,0.47216893]
[1770970381102,0.49003916,79.289,79.269,0.47216893]
[1770970382574,0.49003916,79.289,79.259,0.49987027]
[1770970383575,0.4740173,79.294,79.261,0.49987027]
[1770970383875,4.29755456,79.35,79.281,0.49987027]
[1770970384082,12.60599398,79.328,79.283,0.49987027]
[1770970384279,12.60599398,79.328,79.285,0.49987027]
[1770970384676,12.60599398,79.328,79.287,0.49987027]
[1770970385393,4.19755456,79.31,79.286,44.14398506]
[1770970385902,31.51037968,79.339,79.286,44.14398506]
[1770970385903,0.4740173,79.338,79.301,0.49987027]
[1770970386579,0.4740173,79.355,79.321,0.49987027]
[1770970386781,0.4740173,79.349,79.322,45.66]
[1770970386983,0.4740173,79.329,79.306,12.60938642]
[1770970387670,0.4740173,79.329,79.306,13.10925669]
[1770970388079,0.4740173,79.329,79.306,44.63272275]
[1770970389082,0.4740173,79.329,79.307,0.49987027]
[1770970389476,0.4740173,79.329,79.3,4.19755456]
[1770970389477,8.39510912,79.32,79.284,12.61288532]
[1770970389781,4.19755456,79.31,79.284,12.61288532]
[1770970390470,4.19755456,79.3,79.284,12.61288532]
[1770970390673,4.19755456,79.3,79.268,45.68]
[1770970390674,4.19755456,79.3,79.273,0.50001537]
[1770970391400,4.19755456,79.3,79.275,0.50001537]
[1770970391995,12.61014389,79.302,79.274,12.61447637]
[1770970391996,4.19755456,79.29,79.274,12.61447637]
[1770970392787,4.19755456,79.29,79.269,0.50001537]
[1770970393088,4.19755456,79.29,79.27,12.6151129]
[1770970393290,4.19755456,79.29,79.27,13.11512827]
[1770970393672,4.61729252,79.315,79.271,0.50001537]
[1770970393879,4.19755456,79.3,79.271,0.50001537]
[1770970395794,4.19755456,79.3,79.272,12.61479463]
[1770970396093,4.19755456,79.3,79.273,0.50001537]
[1770970398790,4.19755456,79.29,79.268,58.29534706]
[1770970398974,4.19755456,79.29,79.269,0.50001537]
[1770970399173,4.19755456,79.29,79.268,58.29534706]
[1770970399400,4.19755456,79.28,79.268,45.68]
[1770970399603,4.19755456,79.28,79.25,0.50001537]
[1770970399895,4.19755456,79.27,79.25,0.50001537]
[1770970400782,4.19755456,79.29,79.25,0.50001537]
[1770970400783,4.19755456,79.28,79.25,0.50001537]
[1770970400982,4.19755456,79.28,79.252,0.50001537]
[1770970403709,4.19755456,79.28,79.254,0.50001537]
[1770970405576,4.19755456,79.28,79.248,0.50001537]
[1770970405782,16.81122517,79.28,79.249,12.61845575]
[1770970405988,4.19755456,79.27,79.25,0.50001537]
[1770970406987,4.19755456,79.26,79.24,0.50001537]
[1770970407888,4.19755456,79.27,79.241,12.61972968]
[1770970408089,4.19755456,79.27,79.242,0.50001537]
[1770970410207,4.19755456,79.26,79.242,0.50001537]
[1770970411698,4.19755456,79.29,79.251,0.50001537]
[1770970411699,4.19755456,79.28,79.251,0.50001537]
[1770970411904,4.19755456,79.27,79.251,0.50001537]
[1770970412085,4.19755456,79.27,79.243,12.61941117]
[1770970412086,4.19755456,79.26,79.244,0.50001537]
[1770970412287,4.19755456,79.27,79.246,0.50001537]
[1770970412599,4.19755456,79.28,79.246,0.50001537]
[1770970413601,4.19755456,79.28,79.251,0.50001537]
[1770970413801,4.19755456,79.29,79.251,0.50001537]
[1770970413993,4.19755456,79.28,79.251,0.50001537]
[1770970414302,4.19755456,79.28,79.253,0.50001537]
[1770970414700,4.19755456,79.26,79.252,45.94]
[1770970414899,4.19755456,79.26,79.242,13.11954495]
[1770970415386,4.19755456,79.25,79.234,45.94]
[1770970415906,4.19755456,79.24,79.222,12.62270083]
[1770970416488,4.19755456,79.24,79.222,13.1227162]
[1770970416786,4.19755456,79.23,79.22,0.2]
[1770970423011,12.62009104,79.239,79.22,0.2]
[1770970423712,16.81746868,79.24,79.22,0.2]
[1770970425501,4.19755456,79.23,79.22,0.2]
[1770970427015,4.2051742,79.23,79.22,0.2]
[1770970429521,16.82514242,79.24,79.22,0.70001537]
[1770970429819,4.2051742,79.24,79.22,0.70001537]
[1770970430201,12.6200482,79.239,79.22,0.70001537]
[1770970431895,4.2051742,79.23,79.22,0.2]
[1770970433532,12.62164106,79.229,79.21,0.2]
[1770970433894,4.2051742,79.22,79.201,12.6261032]
[1770970434103,4.2051742,79.21,79.201,12.6261032]
[1770970435118,4.2051742,79.21,79.2,0.6]
[1770970435119,4.2051742,79.21,79.191,12.62769759]
[1770970435313,4.2051742,79.21,79.192,0.50001537]
[1770970435816,4.2051742,79.21,79.193,12.62737868]
[1770970436004,4.2051742,79.21,79.193,13.12739405]
[1770970436406,4.2051742,79.21,79.194,0.50001537]
[1770970438203,4.2051742,79.21,79.195,12.62705978]
[1770970438403,4.2051742,79.22,79.196,0.50001537]
[1770970438819,4.2051742,79.21,79.196,0.50001537]
[1770970439429,4.2051742,79.22,79.196,0.50001537]
[1770970439713,12.62162028,79.23,79.196,0.50001537]
[1770970440025,4.2051742,79.22,79.196,0.50001537]
[1770970440231,4.2051742,79.21,79.196,0.50001537]
[1770970440829,4.2051742,79.21,79.18,0.70001537]
[1770970441138,4.2051742,79.2,79.182,0.50001537]
[1770970443524,4.2051742,79.2,79.182,13.12904633]
[1770970445523,12.62642205,79.199,79.18,0.2]
[1770970445734,4.2051742,79.19,79.18,0.2]
[1770970446811,4.2051742,79.19,79.17,0.2]
[1770970447128,4.2051742,79.18,79.17,0.2]
[1770970448031,4.2051742,79.19,79.17,0.2]
[1770970450015,16.83318258,79.19,79.17,0.2]
[1770970450915,4.2051742,79.18,79.17,0.2]
[1770970452448,4.2051742,79.19,79.17,0.2]
[1770970453234,4.2051742,79.18,79.17,0.2]
[1770970453449,8.4103484,79.18,79.135,12.63649579]
[1770970453629,4.2051742,79.16,79.135,12.63649579]
[1770970453819,4.2051742,79.15,79.135,12.63649579]
[1770970455518,4.2051742,79.15,79.137,0.50001537]
[1770970455724,4.2051742,79.16,79.142,0.50001537]
[1770970456138,4.2051742,79.15,79.135,0.50001537]
[1770970456452,4.2051742,79.15,79.13,0.2]
[1770970456618,4.2051742,79.14,79.121,12.63884605]
[1770970456820,4.2051742,79.14,79.122,0.50001537]
[1770970457742,4.2051742,79.14,79.123,12.6385501]
[1770970458131,4.2051742,79.14,79.124,0.50001537]
[1770970458644,4.2051742,79.13,79.119,12.63909422]
[1770970458838,4.2051742,79.14,79.116,0.50001537]
[1770970459043,4.2051742,79.17,79.115,12.63982809]
[1770970459044,4.2051742,79.17,79.121,0.50001537]
[1770970459343,4.2051742,79.16,79.121,0.50001537]
[1770970459646,4.2051742,79.15,79.121,0.50001537]
[1770970460343,4.2051742,79.15,79.12,4.2051742]
[1770970460344,4.2051742,79.15,79.123,0.50001537]
[1770970461324,4.2051742,79.15,79.12,4.2051742]
[1770970461325,4.2051742,79.15,79.124,44.2343663]
[1770970461646,4.2051742,79.15,79.125,0.50001537]
[1770970464528,4.2051742,79.15,79.11,4.4051742]
[1770970464529,4.2051742,79.13,79.11,0.70001537]
[1770970464725,12.63439841,79.149,79.11,0.2]
[1770970464726,4.2051742,79.12,79.11,0.2]
[1770970465242,4.2051742,79.13,79.11,0.2]
[1770970467137,12.63759178,79.129,79.11,0.2]
[1770970467333,4.2051742,79.17,79.121,0.50001537]
[1770970467531,4.2051742,79.16,79.131,0.50001537]
[1770970468532,31.57945232,79.166,79.133,0.50001537]
[1770970468848,4.2051742,79.16,79.133,0.50001537]
[1770970470949,4.2051742,79.18,79.141,0.50001537]
[1770970471157,4.2051742,79.18,79.151,0.50001537]
[1770970472933,4.2051742,79.18,79.153,0.50001537]
[1770970473128,16.8346818,79.18,79.153,0.50001537]
[1770970473761,4.2051742,79.17,79.153,0.50001537]
[1770970473928,4.2051742,79.17,79.152,12.63391954]
[1770970474456,4.2051742,79.17,79.147,0.50001537]
[1770970474633,4.2051742,79.16,79.142,12.63548115]
[1770970474835,4.2051742,79.17,79.143,0.50001537]
[1770970475039,12.6295076,79.18,79.145,0.50001537]
[1770970475040,4.2051742,79.18,79.145,0.50001537]
[1770970475544,4.2051742,79.17,79.145,0.50001537]
[1770970478260,4.2051742,79.18,79.147,0.50001537]
[1770970478468,12.62893801,79.184,79.147,0.50001537]
[1770970478469,4.2051742,79.17,79.147,0.50001537]
[1770970479568,4.2051742,79.16,79.134,12.63666692]
[1770970479865,4.2051742,79.15,79.134,12.63666692]
[1770970481871,4.2051742,79.15,79.134,0.50001537]
[1770970482073,4.2051742,79.16,79.134,0.50001537]
[1770970488461,4.2051742,79.15,79.134,0.50001537]
[1770970488862,4.21395171,79.15,79.134,0.50001537]
[1770970489462,4.21395171,79.15,79.132,12.63699655]
[1770970489463,4.21395171,79.15,79.136,0.50001537]
[1770970493677,12.63323909,79.157,79.136,0.50001537]
[1770970494180,4.21395171,79.15,79.136,0.50001537]
[1770970494882,4.21395171,79.16,79.136,0.50001537]
[1770970495669,12.63280233,79.159,79.136,0.50001537]
[1770970496679,4.21395171,79.15,79.136,0.50001537]
[1770970497259,8.42790342,79.15,79.111,0.50001537]
[1770970497473,4.21395171,79.13,79.112,0.50001537]
[1770970497680,4.21395171,79.13,79.114,0.50001537]
[1770970498976,16.85150059,79.13,79.107,0.50001537]
[1770970499179,12.63624209,79.138,79.111,12.64046719]
[1770970499375,4.21395171,79.13,79.111,12.64046719]
[1770970499681,4.21395171,79.13,79.111,13.14048256]
[1770970500179,12.63624209,79.138,79.09,4.21395171]
[1770970500180,4.21395171,79.12,79.106,0.50001537]
[1770970500371,4.21395171,79.12,79.106,13.14127024]
[1770970500759,4.21395171,79.12,79.106,0.50001537]
[1770970501782,4.21395171,79.15,79.112,0.50001537]
[1770970501988,4.21395171,79.15,79.121,0.50001537]
[1770970502485,4.61729252,79.172,79.111,44.24163516]
[1770970502486,4.21395171,79.16,79.131,0.50001537]
[1770970503574,4.21395171,79.16,79.133,0.50001537]
[1770970504692,4.21395171,79.17,79.14,4.21395171]
[1770970504990,4.21395171,79.17,79.141,0.50001537]
[1770970506089,12.63024944,79.175,79.135,0.50001537]
[1770970506090,4.21395171,79.16,79.135,0.50001537]
[1770970506294,4.21395171,79.16,79.123,12.6385501]
[1770970506295,4.21395171,79.15,79.124,0.50001537]
[1770970507196,4.21395171,79.15,79.126,0.50001537]
[1770970509277,4.21395171,79.15,79.128,0.50001537]
[1770970510787,12.6329457,79.159,79.128,0.50001537]
[1770970511096,4.21395171,79.16,79.131,0.50001537]
[1770970511896,16.84660133,79.16,79.132,12.63711267]
[1770970512099,16.84660133,79.16,79.133,0.50001537]
[1770970515102,8.42790342,79.14,79.11,0.2]
[1770970515285,4.21395171,79.14,79.11,0.2]
[1770970515487,4.21395171,79.13,79.11,0.70001537]
[1770970515692,4.21395171,79.14,79.112,0.50001537]
[1770970516402,4.21395171,79.13,79.112,0.50001537]
[1770970516993,4.21395171,79.14,79.112,0.50001537]
[1770970517890,4.21395171,79.13,79.112,0.50001537]
[1770970518078,12.63599489,79.139,79.11,0.2]
[1770970518079,4.21395171,79.12,79.11,0.2]
[1770970518403,4.21395171,79.13,79.11,0.2]
[1770970519184,12.63759178,79.129,79.11,0.2]
[1770970520008,4.21395171,79.13,79.111,0.50001537]
[1770970520308,12.63688724,79.134,79.111,0.50001537]
[1770970520685,4.21395171,79.13,79.111,0.50001537]
[1770970521904,12.63524558,79.144,79.113,0.50001537]
[1770970522201,12.63524558,79.144,79.112,12.64030741]
[1770970522202,16.84819873,79.15,79.121,0.50001537]
[1770970522991,4.21395171,79.14,79.113,0.50001537]
[1770970523384,4.21395171,79.13,79.113,0.50001537]
[1770970523586,4.21395171,79.13,79.11,0.2]
[1770970525509,12.63759178,79.129,79.11,0.2]
[1770970525993,4.21395171,79.13,79.11,0.2]
[1770970526594,12.63671156,79.135,79.111,0.50001537]
[1770970526793,4.21395171,79.13,79.111,0.50001537]
[1770970530211,4.21395171,79.14,79.113,0.50001537]
[1770970530609,4.21395171,79.13,79.11,0.2]
[1770970531331,4.21395171,79.12,79.11,0.2]
[1770970531902,12.63759897,79.129,79.11,0.2]
[1770970534605,4.21395171,79.12,79.11,0.2]
[1770970536721,4.21395171,79.13,79.11,0.2]
[1770970537916,4.21395171,79.13,79.111,0.50001537]
[1770970538914,16.85154241,79.13,79.111,0.50001537]
[1770970543100,4.21395171,79.12,79.11,0.2]
[1770970543305,12.63918906,79.119,79.11,0.2]
[1770970544019,4.21395171,79.12,79.11,0.2]
[1770970544320,4.21395171,79.13,79.111,0.50001537]
[1770970544533,12.63678552,79.135,79.111,0.50001537]
[1770970545827,4.21395171,79.13,79.111,0.50001537]
[1770970548531,31.58738534,79.146,79.111,0.50001537]
[1770970548532,12.63668708,79.135,79.111,0.50001537]
[1770970548945,4.21590283,79.13,79.111,0.50001537]
[1770970554621,12.63759178,79.129,79.111,0.50001537]
[1770970555136,12.63759178,79.129,79.11,0.2]
[1770970555327,4.21590283,79.12,79.11,0.2]
[1770970555530,12.63759178,79.129,79.11,0.2]
[1770970555726,4.21590283,79.13,79.11,0.2]
[1770970555931,4.21590283,79.13,79.11,0.70001537]
[1770970556930,4.21590283,79.13,79.111,0.50001537]
[1770970558741,12.63619038,79.138,79.113,0.50001537]
[1770970558945,4.21590283,79.14,79.113,0.50001537]
[1770970558946,4.21590283,79.14,79.114,0.50001537]
[1770970559423,4.21590283,79.13,79.114,13.14000323]
[1770970559627,4.21590283,79.13,79.114,12.63998786]
[1770970559824,4.21590283,79.13,79.115,0.50001537]
[1770970561438,4.21590283,79.13,79.117,0.50001537]
[1770970562530,4.21590283,79.13,79.112,0.50001537]
[1770970564428,4.21590283,79.13,79.113,12.64014763]
[1770970564628,4.21590283,79.14,79.114,0.50001537]
[1770970567246,4.21590283,79.14,79.116,0.50001537]
[1770970569249,4.21590283,79.13,79.111,12.64031395]
[1770970569448,4.21590283,79.13,79.112,13.14032278]
[1770970569751,107.36796896,79.167,79.11,0.2]
[1770970569752,4.21590283,79.12,79.11,0.2]
[1770970570934,4.21590283,79.13,79.11,0.2]
[1770970573652,4.21590283,79.12,79.11,0.2]
[1770970574154,12.63918906,79.119,79.095,12.64293091]
[1770970574335,4.21590283,79.11,79.095,12.64293091]
[1770970575251,31.59303447,79.132,79.093,0.50001537]
[1770970575450,4.21590283,79.12,79.093,0.50001537]
[1770970576847,4.21590283,79.11,79.087,0.50001537]
[1770970577042,4.21590283,79.1,79.081,0.50001537]
[1770970577552,4.21590283,79.1,79.08,0.2]
[1770970577855,4.21590283,79.11,79.07,0.2]
[1770970577856,4.21590283,79.09,79.07,0.2]
[1770970578153,4.21590283,79.08,79.048,0.50001537]
[1770970578350,4.21590283,79.07,79.048,0.50001537]
[1770970578553,6.24288725,79.106,79.041,0.50001537]
[1770970578554,4.21590283,79.06,79.041,0.50001537]
[1770970579133,4.21590283,79.07,79.045,0.50001537]
[1770970581858,4.21590283,79.07,79.047,0.50001537]
[1770970583139,4.21590283,79.08,79.047,0.50001537]
[1770970583459,4.21590283,79.08,79.051,0.50001537]
[1770970584358,4.21590283,79.07,79.051,0.50001537]
[1770970584862,4.21590283,79.07,79.044,13.15105796]
[1770970585062,4.21590283,79.07,79.045,0.50001537]
[1770970585954,4.21590283,79.06,79.04,0.2]
[1770970586254,4.21590283,79.06,79.042,0.50001537]
[1770970587654,4.21590283,79.07,79.042,0.50001537]
[1770970588167,4.21590283,79.08,79.044,0.50001537]
[1770970588546,4.61729252,79.096,79.051,0.50001537]
[1770970588752,4.21590283,79.08,79.051,0.50001537]
[1770970590669,4.21590283,79.08,79.053,0.50001537]
[1770970592177,12.64437148,79.087,79.053,0.50001537]
[1770970592466,4.21590283,79.08,79.053,0.50001537]
[1770970592849,4.21590283,79.08,79.055,0.50001537]
[1770970594054,4.21590283,79.09,79.055,0.50001537]
[1770970594369,4.21590283,79.1,79.061,0.50001537]
[1770970594552,4.21590283,79.1,79.071,0.50001537]
[1770970594946,4.21590283,79.11,79.081,0.50001537]
[1770970595958,12.64040075,79.112,79.081,0.50001537]
[1770970595959,4.21590283,79.1,79.081,0.50001537]
[1770970596161,4.21590283,79.09,79.068,0.50001537]
[1770970597770,12.64398336,79.089,79.068,0.50001537]
[1770970597958,4.21590283,79.09,79.068,13.14732148]
[1770970598160,4.21590283,79.09,79.069,0.50001537]
[1770970598887,4.21590283,79.1,79.069,0.50001537]
[1770970599566,4.21590283,79.11,79.07,48.48047851]
[1770970599763,4.21590283,79.11,79.071,0.50001537]
[1770970600272,4.21590283,79.1,79.071,0.50001537]
[1770970600660,4.21590283,79.11,79.071,0.50001537]
[1770970600860,4.21590283,79.11,79.081,0.50001537]
[1770970601873,4.21590283,79.12,79.083,0.50001537]
[1770970602056,4.21590283,79.12,79.082,12.64510255]
[1770970602057,4.21590283,79.12,79.091,0.50001537]
[1770970602677,4.21590283,79.13,79.101,0.50001537]
[1770970602858,4.21590283,79.15,79.111,0.50001537]
[1770970603063,4.21590283,79.14,79.111,0.50001537]
[1770970603856,4.21590283,79.15,79.111,0.50001537]
[1770970604058,12.63326538,79.157,79.121,0.50001537]
[1770970604362,4.21590283,79.15,79.121,0.50001537]
[1770970605579,4.21590283,79.14,79.121,0.50001537]
[1770970605775,4.21590283,79.14,79.111,0.50001537]
[1770970605960,4.21590283,79.13,79.111,13.14048256]
[1770970606361,12.63759178,79.129,79.105,0.50001537]
[1770970606560,4.21590283,79.13,79.105,0.50001537]
[1770970607070,16.85340214,79.13,79.105,0.50001537]
[1770970607277,4.21590283,79.12,79.105,0.50001537]
[1770970608881,4.21590283,79.12,79.105,13.14144132]
[1770970609065,4.21590283,79.12,79.1,0.50001537]
[1770970609779,8.43180566,79.11,79.08,0.50001537]
[1770970609975,4.21590283,79.09,79.065,0.50001537]
[1770970610860,4.22032823,79.09,79.066,12.64766144]
[1770970611179,4.22032823,79.09,79.067,0.50001537]
[1770970612156,4.22032823,79.1,79.069,0.50001537]
[1770970612363,4.22032823,79.11,79.071,0.50001537]
[1770970613580,4.22032823,79.11,79.081,0.50001537]
[1770970613962,4.22032823,79.12,79.081,0.50001537]
[1770970614161,4.22032823,79.11,79.081,0.50001537]
[1770970615791,12.64078676,79.109,79.082,12.64510255]
[1770970615996,4.22032823,79.1,79.077,12.64576174]
[1770970616166,4.22032823,79.09,79.069,0.50001537]
[1770970616367,12.64078676,79.109,79.071,0.50001537]
[1770970616578,4.22032823,79.1,79.071,0.50001537]
[1770970618166,4.22032823,79.1,79.073,0.50001537]
[1770970618365,4.22032823,79.09,79.072,12.64670174]
[1770970618574,4.22032823,79.1,79.073,0.50001537]
[1770970619402,4.22032823,79.12,79.081,0.50001537]
[1770970619767,4.22032823,79.12,79.091,0.50001537]
[1770970619978,4.22032823,79.13,79.101,0.50001537]
[1770970620284,4.22032823,79.13,79.103,0.50001537]
[1770970621484,12.63296192,79.158,79.111,0.50001537]
[1770970621682,4.22032823,79.14,79.111,0.50001537]
[1770970622078,4.22032823,79.15,79.111,0.50001537]
[1770970622279,12.63326721,79.157,79.121,0.50001537]
[1770970622480,4.32032823,79.16,79.121,0.50001537]
[1770970622677,4.22032823,79.15,79.121,0.50001537]
[1770970622889,4.22032823,79.14,79.121,0.50001537]
[1770970623276,4.22032823,79.15,79.121,0.50001537]
[1770970624172,4.22032823,79.14,79.122,12.63870984]
[1770970625287,4.22032823,79.15,79.117,0.50001537]
[1770970625790,4.22032823,79.14,79.116,12.63966833]
[1770970626301,4.22032823,79.15,79.117,0.50001537]
[1770970627701,0.1,79.16,79.11,4.22032823]
[1770970627702,4.32032823,79.16,79.121,0.50001537]
[1770970627998,12.63280233,79.159,79.121,0.50001537]
[1770970628777,4.22032823,79.15,79.121,0.50001537]
[1770970629176,4.22032823,79.14,79.121,0.50001537]
[1770970629376,4.22032823,79.14,79.118,12.63934882]
[1770970630099,4.22032823,79.14,79.106,0.50001537]
[1770970630402,4.22032823,79.12,79.096,0.50001537]
[1770970630572,4.22032823,79.11,79.094,12.64307193]
[1770970631201,4.22032823,79.12,79.095,0.50001537]
[1770970632201,16.85939747,79.12,79.094,12.64307193]
[1770970632899,4.22032823,79.12,79.094,12.64307193]
[1770970633482,4.22032823,79.11,79.094,12.64307193]
[1770970633684,4.22032823,79.11,79.088,13.14407705]
[1770970634089,4.22032823,79.11,79.084,12.64463121]
[1770970634289,4.22032823,79.11,79.084,0.50001537]
[1770970637187,4.22032823,79.12,79.091,0.50001537]
[1770970638979,4.22032823,79.11,79.091,0.50001537]
[1770970639806,4.22032823,79.12,79.093,0.50001537]
[1770970640711,4.22032823,79.11,79.082,0.50001537]
[1770970643209,4.22032823,79.11,79.084,0.50001537]
[1770970644590,4.22032823,79.1,79.083,12.64494265]
[1770970645195,4.22032823,79.1,79.083,13.14495802]
[1770970645398,4.22032823,79.1,79.076,0.50001537]
[1770970648110,16.86268846,79.1,79.076,0.50001537]
[1770970648492,4.22032823,79.09,79.065,0.50001537]
[1770970648791,4.22032823,79.08,79.052,0.50001537]
[1770970649111,4.22032823,79.09,79.052,0.50001537]
[1770970649297,4.22032823,79.09,79.061,0.50001537]
[1770970649496,4.61729252,79.097,79.061,0.50001537]
[1770970649497,4.22032823,79.08,79.061,0.50001537]
[1770970650616,4.22032823,79.08,79.062,12.64830133]
[1770970653002,4.22032823,79.09,79.063,0.50001537]
[1770970655296,4.22032823,79.09,79.065,0.50001537]
[1770970657420,4.61729252,79.106,79.067,0.50001537]
[1770970657626,4.22032823,79.09,79.067,0.50001537]
[1770970659113,4.22032823,79.09,79.066,12.64766144]
[1770970661434,4.22032823,79.09,79.065,0.50001537]
[1770970663229,12.64398336,79.089,79.065,0.50001537]
[1770970663841,4.22032823,79.08,79.065,0.50001537]
[1770970664305,4.22032823,79.08,79.064,12.64786414]
[1770970664509,4.22032823,79.07,79.054,12.64958129]
[1770970666528,4.22032823,79.06,79.04,0.2]
[1770970666710,4.22032823,79.06,79.041,12.65166179]
[1770970666906,4.22032823,79.06,79.042,0.50001537]
[1770970671029,4.22393813,79.06,79.042,0.50001537]
[1770970671530,4.22393813,79.06,79.044,0.50001537]
[1770970671715,4.22393813,79.07,79.044,0.50001537]
[1770970672328,12.64510255,79.082,79.044,0.50001537]
[1770970672626,4.22393813,79.07,79.044,0.50001537]
[1770970673931,4.22393813,79.08,79.051,0.50001537]
[1770970674138,4.22393813,79.09,79.061,0.50001537]
[1770970675535,4.22393813,79.09,79.063,0.50001537]
[1770970675735,4.22393813,79.09,79.062,12.64830133]
[1770970675912,4.22393813,79.09,79.063,0.50001537]
[1770970676235,4.22393813,79.1,79.071,0.50001537]
[1770970678622,4.22393813,79.1,79.073,0.50001537]
[1770970678827,4.22393813,79.09,79.073,0.50001537]
[1770970679034,16.86619237,79.1,79.073,0.50001537]
[1770970681233,4.22393813,79.1,79.075,0.50001537]
[1770970682537,12.64238485,79.099,79.075,0.50001537]
[1770970682723,4.22393813,79.1,79.075,0.50001537]
[1770970683441,4.22393813,79.1,79.076,13.14607738]
[1770970683623,12.64238485,79.099,79.062,0.50001537]
[1770970684622,4.22393813,79.1,79.062,0.50001537]
[1770970684939,4.22393813,79.08,79.042,0.50001537]
[1770970685142,4.22393813,79.06,79.042,0.50001537]
[1770970685331,4.22393813,79.06,79.041,0.50001537]
[1770970685647,4.22393813,79.06,79.041,13.15167716]
[1770970685940,4.22393813,79.06,79.042,0.50001537]
[1770970686322,4.22393813,79.07,79.042,0.50001537]
[1770970689021,4.22393813,79.07,79.044,0.50001537]
[1770970690343,4.22393813,79.08,79.044,0.50001537]
[1770970690549,4.22393813,79.08,79.051,0.50001537]
[1770970691653,4.22393813,79.08,79.053,0.50001537]
[1770970693232,4.22393813,79.09,79.053,0.50001537]
[1770970693434,4.22393813,79.09,79.061,0.50001537]
[1770970693634,4.22393813,79.09,79.063,0.50001537]
[1770970695456,4.22393813,79.08,79.063,0.50001537]
[1770970695845,4.22393813,79.09,79.064,12.64798138]
[1770970696252,4.22393813,79.08,79.065,0.50001537]
[1770970697063,4.22393813,79.09,79.065,0.50001537]
[1770970699661,4.22393813,79.09,79.067,0.50001537]
[1770970701153,4.22393813,79.1,79.067,0.50001537]
[1770970701552,4.22393813,79.1,79.071,0.50001537]
[1770970701859,4.22393813,79.11,79.071,0.50001537]
[1770970703861,4.22393813,79.1,79.073,0.50001537]
[1770970706660,4.22393813,79.1,79.074,12.64638187]
[1770970706967,4.22393813,79.1,79.075,0.50001537]
[1770970709165,4.22393813,79.1,79.077,0.50001537]
[1770970711673,4.22393813,79.1,79.079,0.50001537]
[1770970714075,16.86618875,79.1,79.078,12.64574217]
[1770970714377,4.22393813,79.1,79.078,12.64574217]
[1770970715055,4.22393813,79.1,79.076,12.64604276]
[1770970715259,12.64238485,79.099,79.073,0.50001537]
[1770970715654,4.22393813,79.09,79.067,12.64735701]
[1770970716282,4.22393813,79.09,79.068,0.50001537]
[1770970718070,4.22393813,79.09,79.069,12.64718157]
[1770970718871,4.22393813,79.09,79.069,0.50001537]
[1770970719456,4.22393813,79.1,79.069,0.50001537]
[1770970719664,12.64078676,79.109,79.071,0.50001537]
[1770970720181,31.59985543,79.115,79.071,0.50001537]
[1770970720351,4.22393813,79.12,79.081,0.50001537]
[1770970721885,4.22393813,79.11,79.081,0.50001537]
[1770970723464,12.64078676,79.109,79.073,0.50001537]
[1770970723962,4.22393813,79.1,79.073,0.50001537]
[1770970724273,4.22393813,79.09,79.069,0.50001537]
[1770970724767,4.22393813,79.1,79.069,0.50001537]
[1770970725171,44.24275366,79.109,79.06,4.22393813]
[1770970725172,4.22393813,79.09,79.06,4.22393813]
[1770970725360,4.22393813,79.09,79.063,31.62025721]
[1770970725566,4.22393813,79.09,79.062,0.50001537]
[1770970726662,4.22393813,79.09,79.064,0.50001537]
[1770970726973,4.22393813,79.1,79.064,0.50001537]
[1770970728774,12.64238485,79.099,79.066,0.50001537]
[1770970729878,4.22393813,79.09,79.066,0.50001537]
[1770970730179,12.64238485,79.099,79.066,0.50001537]
[1770970730354,16.86625384,79.1,79.066,0.50001537]
[1770970730751,4.22393813,79.09,79.066,0.50001537]
[1770970730977,4.22393813,79.09,78.999,50.63307683]
[1770970730978,4.22393813,79.13,79.081,0.46395268]
[1770970731175,0.4965482,79.129,79.091,0.46395268]
[1770970732085,0.4965482,79.119,79.091,0.46395268]
[1770970732882,4.21811241,79.11,79.092,12.64350376]
[1770970733064,4.71466061,79.11,79.092,12.64350376]
[1770970733379,4.71466061,79.11,79.085,0.46395268]
[1770970733380,0.4965482,79.109,79.085,0.46395268]
[1770970734367,4.61729252,79.137,79.085,0.46395268]
[1770970734368,0.4965482,79.157,79.101,0.46395268]
[1770970734568,12.63159271,79.167,79.141,0.46395268]
[1770970734784,4.31811241,79.17,79.141,0.46395268]
[1770970734961,4.31811241,79.17,79.142,13.09946858]
[1770970735166,4.31811241,79.17,79.143,0.46395268]
[1770970735380,0.4965482,79.165,79.143,0.46395268]
[1770970735583,4.31811241,79.17,79.134,12.63679328]
[1770970735584,0.4965482,79.159,79.134,12.63679328]
[1770970735882,0.4965482,79.149,79.124,12.63839037]
[1770970736380,0.4965482,79.139,79.103,0.46395268]
[1770970736585,0.4965482,79.129,79.103,13.10569825]